[Event "Live Chess"]
[Site "Chess.com"]
[Date "2023.09.16"]
[Round "-"]
[White "Thiago1451"]
[Black "Abofado"]
[Result "0-1"]
[WhiteElo "572"]
[BlackElo "581"]
[TimeControl "900+5"]
[EndTime "6:04:18 PDT"]
[Termination "Abofado venceu por xeque-mate"]

1. c4 {[%clk 0:15:02.9]} 1... c6 {[%clk 0:15:03.8]} 2. Nc3 {[%clk 0:15:07.2]}
2... d5 {[%clk 0:15:07.1]} 3. cxd5 {[%clk 0:15:10.7]} 3... cxd5 {[%clk
0:15:10.9]} 4. d4 {[%clk 0:15:14.2]} 4... e5 {[%clk 0:15:14.5]} 5. e3 {[%clk
0:15:17.6]} 5... exd4 {[%clk 0:15:17.1]} 6. exd4 {[%clk 0:15:21.9]} 6... h5
{[%clk 0:15:15.7]} 7. Nge2 {[%clk 0:15:25.6]} 7... Nf6 {[%clk 0:15:14.2]} 8. g3
{[%clk 0:15:29.8]} 8... Ng4 {[%clk 0:15:15.9]} 9. Bg2 {[%clk 0:15:32.7]} 9...
Qf6 {[%clk 0:15:19.3]} 10. f3 {[%clk 0:15:33.1]} 10... Nh6 {[%clk 0:15:00.1]}
11. O-O {[%clk 0:15:36.6]} 11... Bd6 {[%clk 0:14:48.2]} 12. f4 {[%clk
0:15:40.1]} 12... g5 {[%clk 0:14:50.3]} 13. fxg5 {[%clk 0:15:43.1]} 13... Qe6
{[%clk 0:14:41.9]} 14. gxh6 {[%clk 0:15:46.1]} 14... Rxh6 {[%clk 0:14:43.5]} 15.
Bxh6 {[%clk 0:15:48.4]} 15... Qxh6 {[%clk 0:14:46.8]} 16. Kh1 {[%clk 0:15:51.1]}
16... h4 {[%clk 0:14:50.7]} 17. gxh4 {[%clk 0:15:52.2]} 17... Qxh4 {[%clk
0:14:50.4]} 18. h3 {[%clk 0:15:51.8]} 18... Bxh3 {[%clk 0:14:42.1]} 19. Bxh3
{[%clk 0:15:51.6]} 19... Qxh3+ {[%clk 0:14:38.8]} 20. Kg1 {[%clk 0:15:55.8]}
20... Qh2# {[%clk 0:14:39.8]} 0-1

[Event "Live Chess"]
[Site "Chess.com"]
[Date "2023.09.16"]
[Round "-"]
[White "Arthur1611br"]
[Black "KiwiDoFbi"]
[Result "0-1"]
[WhiteElo "1123"]
[BlackElo "1243"]
[TimeControl "900+5"]
[EndTime "6:05:43 PDT"]
[Termination "KiwiDoFbi venceu por xeque-mate"]

1. e4 {[%clk 0:14:59.8]} 1... c5 {[%clk 0:15:02.5]} 2. Bc4 {[%clk 0:15:02.7]}
2... e6 {[%clk 0:15:02]} 3. c3 {[%clk 0:14:58.1]} 3... Nc6 {[%clk 0:15:05.8]} 4.
d4 {[%clk 0:15:00.6]} 4... cxd4 {[%clk 0:15:09.9]} 5. cxd4 {[%clk 0:15:02.5]}
5... d5 {[%clk 0:15:06.3]} 6. Bb5 {[%clk 0:14:59.9]} 6... Qa5+ {[%clk
0:15:06.6]} 7. Bd2 {[%clk 0:14:53.2]} 7... Qxb5 {[%clk 0:15:10]} 8. Nf3 {[%clk
0:14:44.2]} 8... Bb4 {[%clk 0:15:11.3]} 9. Qb3 {[%clk 0:14:38.1]} 9... Bxd2+
{[%clk 0:15:14.5]} 10. Kxd2 {[%clk 0:14:38]} 10... Qxb3 {[%clk 0:15:17.8]} 11.
axb3 {[%clk 0:14:40.4]} 11... dxe4 {[%clk 0:15:19]} 12. Ne5 {[%clk 0:14:43.3]}
12... Nxe5 {[%clk 0:15:21.2]} 13. dxe5 {[%clk 0:14:46.2]} 13... Ne7 {[%clk
0:15:25.8]} 14. Rd1 {[%clk 0:14:47.8]} 14... Nd5 {[%clk 0:15:25.9]} 15. Ke2
{[%clk 0:14:51.4]} 15... O-O {[%clk 0:15:27.7]} 16. Nd2 {[%clk 0:14:45.6]} 16...
Nf4+ {[%clk 0:15:11.1]} 17. Kf1 {[%clk 0:14:38.7]} 17... b6 {[%clk 0:15:06.5]}
18. Nxe4 {[%clk 0:14:41.2]} 18... Bb7 {[%clk 0:15:09.9]} 19. Nd6 {[%clk
0:14:39]} 19... Bxg2+ {[%clk 0:15:12.3]} 20. Kg1 {[%clk 0:14:39.5]} 20... Bh3
{[%clk 0:15:11.5]} 21. Rd4 {[%clk 0:14:37.1]} 21... Ne2+ {[%clk 0:15:13.1]} 22.
Kh1 {[%clk 0:14:34.6]} 22... Nxd4 {[%clk 0:15:14.5]} 23. Rd1 {[%clk 0:14:37.6]}
23... Ne2 {[%clk 0:15:15.7]} 24. Re1 {[%clk 0:14:36.3]} 24... Bg4 {[%clk
0:15:20.3]} 25. Ne4 {[%clk 0:14:34]} 25... Bf3# {[%clk 0:15:24.2]} 0-1

[Event "Live Chess"]
[Site "Chess.com"]
[Date "2023.09.16"]
[Round "-"]
[White "lucasbezerraja"]
[Black "Mozart5501"]
[Result "1-0"]
[WhiteElo "1805"]
[BlackElo "1799"]
[TimeControl "900+5"]
[EndTime "6:06:10 PDT"]
[Termination "lucasbezerraja venceu por desistência"]

1. e4 {[%clk 0:15:02.9]} 1... e5 {[%clk 0:15:04.5]} 2. Nf3 {[%clk 0:15:05.8]}
2... Nc6 {[%clk 0:15:08.9]} 3. Bc4 {[%clk 0:15:09.7]} 3... Bc5 {[%clk
0:15:11.9]} 4. c3 {[%clk 0:15:13.7]} 4... Nf6 {[%clk 0:15:16.1]} 5. d4 {[%clk
0:15:16.7]} 5... exd4 {[%clk 0:15:20.8]} 6. cxd4 {[%clk 0:15:21.6]} 6... Bb4+
{[%clk 0:15:25.1]} 7. Bd2 {[%clk 0:15:24.9]} 7... Bxd2+ {[%clk 0:15:28.1]} 8.
Nbxd2 {[%clk 0:15:28.7]} 8... d6 {[%clk 0:15:29.2]} 9. O-O {[%clk 0:15:26.2]}
9... O-O {[%clk 0:15:32.3]} 10. Re1 {[%clk 0:15:18.6]} 10... Bg4 {[%clk
0:15:33]} 11. h3 {[%clk 0:15:19.6]} 11... Bxf3 {[%clk 0:15:29.3]} 12. Nxf3
{[%clk 0:15:24.2]} 12... Re8 {[%clk 0:15:33.3]} 13. Ng5 {[%clk 0:15:06]} 13...
Rf8 {[%clk 0:15:28.2]} 14. e5 {[%clk 0:14:49.9]} 14... dxe5 {[%clk 0:15:32.6]}
15. dxe5 {[%clk 0:14:53.3]} 15... Nd7 {[%clk 0:15:23.9]} 16. e6 {[%clk
0:14:48.8]} 16... Qxg5 {[%clk 0:15:03.7]} 17. exf7+ {[%clk 0:14:39]} 17... Kh8
{[%clk 0:15:05.4]} 18. Qxd7 {[%clk 0:14:37.2]} 18... Rac8 {[%clk 0:14:03.6]} 19.
Qxc8 {[%clk 0:14:36.2]} 1-0

[Event "Live Chess"]
[Site "Chess.com"]
[Date "2023.09.16"]
[Round "-"]
[White "sleepGM86"]
[Black "Torugomilho11"]
[Result "0-1"]
[WhiteElo "1116"]
[BlackElo "1131"]
[TimeControl "900+5"]
[EndTime "6:06:54 PDT"]
[Termination "Torugomilho11 venceu por desistência"]

1. c4 {[%clk 0:15:02.6]} 1... e5 {[%clk 0:14:56.3]} 2. Nc3 {[%clk 0:15:05.5]}
2... Nf6 {[%clk 0:14:51.4]} 3. g3 {[%clk 0:15:03.5]} 3... Bc5 {[%clk 0:14:33.6]}
4. Bg2 {[%clk 0:15:06.4]} 4... Nc6 {[%clk 0:14:33.6]} 5. e3 {[%clk 0:15:10]}
5... O-O {[%clk 0:14:37.2]} 6. Nge2 {[%clk 0:15:13.8]} 6... d6 {[%clk
0:14:39.3]} 7. O-O {[%clk 0:15:17.5]} 7... Be6 {[%clk 0:14:39]} 8. b3 {[%clk
0:15:19.9]} 8... Qd7 {[%clk 0:14:34.6]} 9. d4 {[%clk 0:15:19.4]} 9... exd4
{[%clk 0:14:38.1]} 10. exd4 {[%clk 0:15:22.7]} 10... Bb4 {[%clk 0:14:18.4]} 11.
d5 {[%clk 0:15:21.9]} 11... Bxc3 {[%clk 0:14:22.4]} 12. Nxc3 {[%clk 0:15:25.8]}
12... Ne5 {[%clk 0:14:13.6]} 13. dxe6 {[%clk 0:15:25]} 13... Qxe6 {[%clk
0:14:17.5]} 14. Nd5 {[%clk 0:15:21.1]} 14... Nxd5 {[%clk 0:14:12.5]} 15. cxd5
{[%clk 0:15:20.3]} 15... Qg6 {[%clk 0:13:58.6]} 16. Bf4 {[%clk 0:15:16.3]} 16...
Rfe8 {[%clk 0:13:57.3]} 17. Bxe5 {[%clk 0:15:18]} 17... Rxe5 {[%clk 0:14:00.4]}
18. Re1 {[%clk 0:15:21.8]} 18... Rae8 {[%clk 0:13:59.5]} 19. Rc1 {[%clk
0:15:21.3]} 19... Rxe1+ {[%clk 0:13:59.3]} 20. Qxe1 {[%clk 0:15:21]} 20... Rxe1+
{[%clk 0:14:03]} 21. Rxe1 {[%clk 0:15:25.9]} 21... h6 {[%clk 0:14:04.7]} 22.
Re8+ {[%clk 0:15:22.7]} 22... Kh7 {[%clk 0:14:08.6]} 23. Be4 {[%clk 0:15:26.2]}
23... f5 {[%clk 0:14:09.6]} 24. Re6 {[%clk 0:15:16.5]} 24... Qf7 {[%clk
0:13:35.4]} 0-1

[Event "Live Chess"]
[Site "Chess.com"]
[Date "2023.09.16"]
[Round "-"]
[White "Edson_Zarnelli"]
[Black "gu1c0rrea"]
[Result "0-1"]
[WhiteElo "755"]
[BlackElo "771"]
[TimeControl "900+5"]
[EndTime "6:07:01 PDT"]
[Termination "gu1c0rrea venceu por desistência"]

1. e4 {[%clk 0:15:01.9]} 1... e5 {[%clk 0:15:03.4]} 2. Nf3 {[%clk 0:15:05.2]}
2... Nc6 {[%clk 0:15:06.8]} 3. Bc4 {[%clk 0:15:08.7]} 3... Bc5 {[%clk
0:15:09.2]} 4. c3 {[%clk 0:15:11]} 4... d6 {[%clk 0:15:10.3]} 5. d3 {[%clk
0:15:09.6]} 5... Bg4 {[%clk 0:15:09.2]} 6. Nbd2 {[%clk 0:15:11.2]} 6... Nf6
{[%clk 0:15:09.4]} 7. d4 {[%clk 0:15:12.4]} 7... exd4 {[%clk 0:15:08.2]} 8. cxd4
{[%clk 0:15:16.2]} 8... Bxd4 {[%clk 0:15:10.9]} 9. Nxd4 {[%clk 0:15:19.4]} 9...
Bxd1 {[%clk 0:15:14.9]} 10. N2b3 {[%clk 0:15:11.5]} 10... Bg4 {[%clk 0:14:56.2]}
11. Nxc6 {[%clk 0:15:06.2]} 11... bxc6 {[%clk 0:14:58.5]} 12. O-O {[%clk
0:15:10]} 12... O-O {[%clk 0:15:01.4]} 13. f3 {[%clk 0:15:08.7]} 13... Be6
{[%clk 0:15:02.2]} 14. Bxe6 {[%clk 0:15:11.3]} 14... fxe6 {[%clk 0:15:07.1]} 15.
Nd4 {[%clk 0:15:12.2]} 15... Qd7 {[%clk 0:15:00.8]} 16. Bg5 {[%clk 0:15:12.4]}
16... h6 {[%clk 0:14:58.1]} 17. Bxf6 {[%clk 0:15:16]} 17... gxf6 {[%clk
0:15:03]} 18. Rfc1 {[%clk 0:15:12.9]} 18... c5 {[%clk 0:15:06]} 19. Ne2 {[%clk
0:15:10.9]} 19... Rab8 {[%clk 0:15:05.7]} 20. b3 {[%clk 0:15:13.5]} 20... Qb5
{[%clk 0:15:03.3]} 21. Kf1 {[%clk 0:15:13.4]} 21... d5 {[%clk 0:14:55.2]} 22.
exd5 {[%clk 0:15:13.9]} 22... exd5 {[%clk 0:15:00.1]} 23. Rd1 {[%clk 0:15:14.7]}
23... d4 {[%clk 0:15:00.2]} 24. Rdb1 {[%clk 0:15:11.1]} 24... Rfe8 {[%clk
0:15:01.6]} 25. Re1 {[%clk 0:15:08.9]} 25... Re3 {[%clk 0:14:53.2]} 26. Rab1
{[%clk 0:15:04.4]} 26... Rbe8 {[%clk 0:14:55.1]} 27. Kf2 {[%clk 0:14:56.1]}
27... Rxe2+ {[%clk 0:14:53.4]} 28. Rxe2 {[%clk 0:14:59.7]} 28... Qxe2+ {[%clk
0:14:58]} 29. Kg3 {[%clk 0:15:03.3]} 29... Qe5+ {[%clk 0:15:00.2]} 30. Kf2
{[%clk 0:15:06.4]} 30... h5 {[%clk 0:15:03]} 31. g3 {[%clk 0:15:00.9]} 31...
Qe2+ {[%clk 0:15:02]} 32. Kg1 {[%clk 0:15:02.6]} 32... d3 {[%clk 0:15:02.7]} 0-1

[Event "Live Chess"]
[Site "Chess.com"]
[Date "2023.09.16"]
[Round "-"]
[White "ABC2009V"]
[Black "Thiago1451"]
[Result "1-0"]
[WhiteElo "2023"]
[BlackElo "572"]
[TimeControl "900+5"]
[EndTime "6:07:02 PDT"]
[Termination "ABC2009V venceu por xeque-mate"]

1. e4 {[%clk 0:15:03.8]} 1... c5 {[%clk 0:15:03.2]} 2. Nf3 {[%clk 0:15:08.3]}
2... Nc6 {[%clk 0:15:06.6]} 3. d4 {[%clk 0:15:11.9]} 3... cxd4 {[%clk
0:15:10.4]} 4. Nxd4 {[%clk 0:15:16.8]} 4... Nf6 {[%clk 0:15:13.3]} 5. Nc3 {[%clk
0:15:14.1]} 5... e5 {[%clk 0:15:14.9]} 6. Ndb5 {[%clk 0:15:16.9]} 6... a5 {[%clk
0:15:18.4]} 7. Nd6+ {[%clk 0:15:18.5]} 7... Bxd6 {[%clk 0:15:18.2]} 8. Qxd6
{[%clk 0:15:23.4]} 8... Qe7 {[%clk 0:15:19.7]} 9. Qxe7+ {[%clk 0:15:21.5]} 9...
Nxe7 {[%clk 0:15:23.7]} 10. Bg5 {[%clk 0:15:25.7]} 10... Nh5 {[%clk 0:15:19]}
11. Be2 {[%clk 0:15:22.1]} 11... g6 {[%clk 0:15:21]} 12. O-O-O {[%clk
0:15:24.1]} 12... O-O {[%clk 0:15:23]} 13. Bxe7 {[%clk 0:15:23.6]} 13... Re8
{[%clk 0:15:22.1]} 14. Bg5 {[%clk 0:15:27.4]} 14... Rb8 {[%clk 0:15:20.8]} 15.
Nd5 {[%clk 0:15:29.8]} 15... d6 {[%clk 0:15:18.4]} 16. Bxh5 {[%clk 0:15:33.3]}
16... gxh5 {[%clk 0:15:21.6]} 17. Nf6+ {[%clk 0:15:34.6]} 17... Kh8 {[%clk
0:15:22.9]} 18. Nxe8 {[%clk 0:15:39.5]} 18... Bg4 {[%clk 0:15:24]} 19. f3 {[%clk
0:15:42.1]} 19... Bxf3 {[%clk 0:15:25.8]} 20. gxf3 {[%clk 0:15:44.7]} 20... Rxe8
{[%clk 0:15:30.7]} 21. Rxd6 {[%clk 0:15:49.1]} 21... Rg8 {[%clk 0:15:33.4]} 22.
Bf6+ {[%clk 0:15:51.3]} 22... Rg7 {[%clk 0:15:36.2]} 23. Rd8# {[%clk 0:15:56.2]}
1-0

[Event "Live Chess"]
[Site "Chess.com"]
[Date "2023.09.16"]
[Round "-"]
[White "ArthurMPRJ"]
[Black "kesiavik"]
[Result "1-0"]
[WhiteElo "1123"]
[BlackElo "1012"]
[TimeControl "900+5"]
[EndTime "6:07:43 PDT"]
[Termination "ArthurMPRJ venceu por xeque-mate"]

1. d4 {[%clk 0:14:50.6]} 1... d5 {[%clk 0:14:55.6]} 2. c4 {[%clk 0:14:54.3]}
2... Nf6 {[%clk 0:14:58.8]} 3. cxd5 {[%clk 0:14:57.5]} 3... Nxd5 {[%clk
0:15:02.5]} 4. e4 {[%clk 0:15:01.3]} 4... Nf6 {[%clk 0:15:06]} 5. Nc3 {[%clk
0:15:03.6]} 5... e6 {[%clk 0:15:07.8]} 6. Be3 {[%clk 0:14:59]} 6... Bb4 {[%clk
0:15:10.9]} 7. f3 {[%clk 0:15:03.4]} 7... Bxc3+ {[%clk 0:15:14.8]} 8. bxc3
{[%clk 0:15:07]} 8... Nc6 {[%clk 0:15:19]} 9. Bd3 {[%clk 0:15:02.4]} 9... Bd7
{[%clk 0:15:22.7]} 10. Ne2 {[%clk 0:15:04.5]} 10... O-O {[%clk 0:15:26.2]} 11.
Qc2 {[%clk 0:15:08.6]} 11... e5 {[%clk 0:15:29.1]} 12. d5 {[%clk 0:15:09.7]}
12... Ne7 {[%clk 0:15:32.5]} 13. O-O {[%clk 0:15:08.9]} 13... c6 {[%clk
0:15:36.2]} 14. Rfd1 {[%clk 0:14:56.2]} 14... Qc8 {[%clk 0:15:39]} 15. Rac1
{[%clk 0:14:51.1]} 15... Ng6 {[%clk 0:15:38.4]} 16. c4 {[%clk 0:14:44]} 16...
Nh5 {[%clk 0:15:18.2]} 17. Rb1 {[%clk 0:14:33.8]} 17... Ngf4 {[%clk 0:15:11.1]}
18. Nxf4 {[%clk 0:14:34]} 18... exf4 {[%clk 0:15:14.8]} 19. Bd4 {[%clk 0:14:37]}
19... f6 {[%clk 0:15:08.6]} 20. e5 {[%clk 0:14:24.2]} 20... fxe5 {[%clk
0:14:45.3]} 21. Bxh7+ {[%clk 0:14:24.8]} 21... Kf7 {[%clk 0:14:39.3]} 22. Qg6+
{[%clk 0:14:20.2]} 22... Ke7 {[%clk 0:14:42]} 23. Bxe5 {[%clk 0:14:05.4]} 23...
Nf6 {[%clk 0:14:15.5]} 24. Qxg7+ {[%clk 0:14:01.5]} 24... Rf7 {[%clk 0:14:18.9]}
25. Bxf6+ {[%clk 0:14:05.2]} 25... Ke8 {[%clk 0:14:22.1]} 26. Bg6 {[%clk
0:14:02.8]} 26... Qc7 {[%clk 0:14:14]} 27. Qxf7# {[%clk 0:14:04.6]} 1-0

[Event "Live Chess"]
[Site "Chess.com"]
[Date "2023.09.16"]
[Round "-"]
[White "NavarroChess09"]
[Black "mary260210"]
[Result "1-0"]
[WhiteElo "1322"]
[BlackElo "837"]
[TimeControl "900+5"]
[EndTime "6:08:18 PDT"]
[Termination "NavarroChess09 venceu por xeque-mate"]

1. d4 {[%clk 0:15:03.4]} 1... d5 {[%clk 0:15:03.6]} 2. Nf3 {[%clk 0:15:06.7]}
2... Nf6 {[%clk 0:15:03.4]} 3. Nc3 {[%clk 0:15:10.5]} 3... Nc6 {[%clk
0:15:03.3]} 4. Bg5 {[%clk 0:15:14.9]} 4... Bg4 {[%clk 0:15:01.4]} 5. e3 {[%clk
0:15:14.6]} 5... Bxf3 {[%clk 0:15:00.9]} 6. Qxf3 {[%clk 0:15:18.1]} 6... e5
{[%clk 0:14:57.8]} 7. Bxf6 {[%clk 0:15:20.4]} 7... Qxf6 {[%clk 0:14:59.5]} 8.
Qxd5 {[%clk 0:15:19.9]} 8... exd4 {[%clk 0:14:54.2]} 9. Qe4+ {[%clk 0:15:19.1]}
9... Be7 {[%clk 0:14:55.1]} 10. Nd5 {[%clk 0:15:19.8]} 10... Qe6 {[%clk
0:14:51.7]} 11. Nxc7+ {[%clk 0:15:20.7]} 11... Kd8 {[%clk 0:14:49.3]} 12. Nxe6+
{[%clk 0:15:23]} 12... fxe6 {[%clk 0:14:50.8]} 13. Bb5 {[%clk 0:15:26]} 13... a6
{[%clk 0:14:54]} 14. Bxc6 {[%clk 0:15:29]} 14... bxc6 {[%clk 0:14:55.9]} 15.
Qxc6 {[%clk 0:15:33.2]} 15... Ra7 {[%clk 0:14:53.1]} 16. exd4 {[%clk 0:15:33.2]}
16... Re8 {[%clk 0:14:47.5]} 17. Qb6+ {[%clk 0:15:33.5]} 17... Kc8 {[%clk
0:14:48.5]} 18. Qxa7 {[%clk 0:15:37.5]} 18... Bb4+ {[%clk 0:14:46.5]} 19. c3
{[%clk 0:15:40.6]} 19... Bd6 {[%clk 0:14:45.7]} 20. Qxa6+ {[%clk 0:15:43.9]}
20... Kd7 {[%clk 0:14:47.3]} 21. O-O {[%clk 0:15:46.9]} 21... Rb8 {[%clk
0:14:45.6]} 22. Rfe1 {[%clk 0:15:48.5]} 22... Rxb2 {[%clk 0:14:46.4]} 23. Qa7+
{[%clk 0:15:50.2]} 23... Kc6 {[%clk 0:14:47]} 24. d5+ {[%clk 0:15:51.9]} 24...
exd5 {[%clk 0:14:50.7]} 25. Qa6+ {[%clk 0:15:54.1]} 25... Kd7 {[%clk 0:14:53.2]}
26. Qa7+ {[%clk 0:15:55.1]} 26... Kc6 {[%clk 0:14:56.6]} 27. Qa8+ {[%clk
0:15:58.4]} 27... Kd7 {[%clk 0:14:57.6]} 28. Qxd5 {[%clk 0:15:58.1]} 28... Rc2
{[%clk 0:14:48.3]} 29. Qf5+ {[%clk 0:15:59.4]} 29... Kc6 {[%clk 0:14:51.6]} 30.
Qxc2 {[%clk 0:16:04.3]} 30... h5 {[%clk 0:14:37.8]} 31. Qe4+ {[%clk 0:16:06.1]}
31... Kc5 {[%clk 0:14:39.6]} 32. a4 {[%clk 0:16:07.5]} 32... Bc7 {[%clk
0:14:35.6]} 33. Qd4+ {[%clk 0:16:10.4]} 33... Kc6 {[%clk 0:14:36.9]} 34. Re6+
{[%clk 0:16:12]} 34... Kb7 {[%clk 0:14:38.7]} 35. Rb1+ {[%clk 0:16:14.6]} 35...
Kc8 {[%clk 0:14:42]} 36. Re8+ {[%clk 0:16:13.9]} 36... Bd8 {[%clk 0:14:43.1]}
37. Qxd8# {[%clk 0:16:18.8]} 1-0

[Event "Live Chess"]
[Site "Chess.com"]
[Date "2023.09.16"]
[Round "-"]
[White "Mozart5501"]
[Black "Arthur1611br"]
[Result "1-0"]
[WhiteElo "1799"]
[BlackElo "1120"]
[TimeControl "900+5"]
[EndTime "6:09:08 PDT"]
[Termination "Mozart5501 venceu por xeque-mate"]

1. e4 {[%clk 0:15:03.5]} 1... e6 {[%clk 0:15:02.4]} 2. d4 {[%clk 0:15:07.1]}
2... d5 {[%clk 0:15:05.7]} 3. exd5 {[%clk 0:15:11.3]} 3... exd5 {[%clk
0:15:08.9]} 4. Bd3 {[%clk 0:15:15.3]} 4... Bb4+ {[%clk 0:15:06.4]} 5. c3 {[%clk
0:15:18.5]} 5... Ba5 {[%clk 0:15:10.1]} 6. Nf3 {[%clk 0:15:22.4]} 6... Bg4
{[%clk 0:15:11]} 7. O-O {[%clk 0:15:25.3]} 7... Bxf3 {[%clk 0:15:12.8]} 8. Re1+
{[%clk 0:15:29.9]} 8... Ne7 {[%clk 0:15:08.8]} 9. Qxf3 {[%clk 0:15:31.7]} 9...
O-O {[%clk 0:15:10]} 10. Nd2 {[%clk 0:15:26.3]} 10... Re8 {[%clk 0:15:05.2]} 11.
Nb3 {[%clk 0:15:29.4]} 11... b6 {[%clk 0:15:05.4]} 12. Nxa5 {[%clk 0:15:32.2]}
12... bxa5 {[%clk 0:15:09.3]} 13. Bg5 {[%clk 0:15:35.8]} 13... f6 {[%clk
0:15:12.8]} 14. Bf4 {[%clk 0:15:09.1]} 14... Nd7 {[%clk 0:15:07.1]} 15. Qh5
{[%clk 0:15:12.1]} 15... Kf8 {[%clk 0:14:58.4]} 16. Qxh7 {[%clk 0:15:09.2]}
16... g6 {[%clk 0:14:56.1]} 17. Bxg6 {[%clk 0:15:09.2]} 17... Nxg6 {[%clk
0:14:56.7]} 18. Bh6# {[%clk 0:15:10.8]} 1-0

[Event "Live Chess"]
[Site "Chess.com"]
[Date "2023.09.16"]
[Round "-"]
[White "AlphaKaua10"]
[Black "vitinho_lawliet"]
[Result "1-0"]
[WhiteElo "1130"]
[BlackElo "943"]
[TimeControl "900+5"]
[EndTime "6:10:07 PDT"]
[Termination "AlphaKaua10 venceu por xeque-mate"]

1. d4 {[%clk 0:15:02.5]} 1... e6 {[%clk 0:14:59.4]} 2. c4 {[%clk 0:15:06.2]}
2... d5 {[%clk 0:15:01.5]} 3. Nf3 {[%clk 0:15:08.9]} 3... dxc4 {[%clk
0:15:04.1]} 4. Qa4+ {[%clk 0:15:12.8]} 4... Bd7 {[%clk 0:15:00.4]} 5. Qxc4
{[%clk 0:15:16.7]} 5... Nc6 {[%clk 0:14:57.8]} 6. e3 {[%clk 0:15:19.3]} 6... f5
{[%clk 0:15:01.2]} 7. Bd3 {[%clk 0:15:21.6]} 7... Na5 {[%clk 0:15:02.6]} 8. Qc3
{[%clk 0:15:15.8]} 8... Nc6 {[%clk 0:14:49]} 9. O-O {[%clk 0:15:18.2]} 9... Nf6
{[%clk 0:14:50.7]} 10. b3 {[%clk 0:15:17.9]} 10... a6 {[%clk 0:14:51.3]} 11. a4
{[%clk 0:15:21.5]} 11... Bb4 {[%clk 0:14:49.9]} 12. Qc2 {[%clk 0:15:15.4]} 12...
O-O {[%clk 0:14:36.1]} 13. Ba3 {[%clk 0:15:19]} 13... Bxa3 {[%clk 0:14:36.9]}
14. Nxa3 {[%clk 0:15:23.9]} 14... Qe7 {[%clk 0:14:36.2]} 15. Ne5 {[%clk
0:15:18.3]} 15... Nb4 {[%clk 0:14:37.2]} 16. Qc4 {[%clk 0:15:16.8]} 16... Nxd3
{[%clk 0:14:40]} 17. Qxd3 {[%clk 0:15:19]} 17... Ng4 {[%clk 0:14:36.3]} 18. Nxd7
{[%clk 0:15:12]} 18... Qxd7 {[%clk 0:14:33.9]} 19. h3 {[%clk 0:15:14.7]} 19...
Rf6 {[%clk 0:14:33.7]} 20. hxg4 {[%clk 0:15:13.9]} 20... Rh6 {[%clk 0:14:36.9]}
21. gxf5 {[%clk 0:15:15.1]} 21... Qd6 {[%clk 0:14:35.3]} 22. g3 {[%clk
0:15:16.7]} 22... Qd5 {[%clk 0:14:33.6]} 23. e4 {[%clk 0:15:15.5]} 23... Qd8
{[%clk 0:14:22.4]} 24. fxe6 {[%clk 0:15:16.9]} 24... Qf6 {[%clk 0:14:18.7]} 25.
Rac1 {[%clk 0:15:13.8]} 25... Qxe6 {[%clk 0:14:16.3]} 26. Qc4 {[%clk 0:15:17.9]}
26... Qxc4 {[%clk 0:14:18.2]} 27. Rxc4 {[%clk 0:15:21.5]} 27... b5 {[%clk
0:14:17.1]} 28. axb5 {[%clk 0:15:24.6]} 28... axb5 {[%clk 0:14:18.2]} 29. Nxb5
{[%clk 0:15:28.7]} 29... Ra5 {[%clk 0:14:17.6]} 30. Nxc7 {[%clk 0:15:31.4]}
30... Rah5 {[%clk 0:14:19.2]} 31. f4 {[%clk 0:15:34.3]} 31... Rh2 {[%clk
0:14:19.1]} 32. Rf2 {[%clk 0:15:33.2]} 32... R2h3 {[%clk 0:14:22]} 33. e5 {[%clk
0:15:29.4]} 33... Rxg3+ {[%clk 0:14:25.4]} 34. Rg2 {[%clk 0:15:32]} 34... Rxb3
{[%clk 0:14:27.6]} 35. e6 {[%clk 0:15:33.9]} 35... Kf8 {[%clk 0:14:29.5]} 36. d5
{[%clk 0:15:36.2]} 36... Ke7 {[%clk 0:14:30.2]} 37. Na6 {[%clk 0:15:34]} 37...
Rf6 {[%clk 0:14:10.6]} 38. Rxg7+ {[%clk 0:15:37.4]} 38... Kd6 {[%clk 0:14:13.7]}
39. Rc6+ {[%clk 0:15:37.6]} 39... Kxd5 {[%clk 0:14:16.8]} 40. e7 {[%clk
0:15:37]} 40... Rxc6 {[%clk 0:14:12.1]} 41. e8=Q {[%clk 0:15:38.6]} 41... Rc2
{[%clk 0:14:15.7]} 42. Qe5+ {[%clk 0:15:41]} 42... Kc4 {[%clk 0:14:09.6]} 43.
Rc7+ {[%clk 0:15:44.4]} 43... Kd3 {[%clk 0:14:12.5]} 44. Rxc2 {[%clk 0:15:46.4]}
44... Kxc2 {[%clk 0:14:14.1]} 45. Qe4+ {[%clk 0:15:49.3]} 45... Kc3 {[%clk
0:14:17.7]} 46. f5 {[%clk 0:15:53.3]} 46... Rb1+ {[%clk 0:14:16.5]} 47. Qxb1
{[%clk 0:15:54]} 47... h5 {[%clk 0:14:21.1]} 48. f6 {[%clk 0:15:58]} 48... h4
{[%clk 0:14:22.8]} 49. Nc5 {[%clk 0:16:00.9]} 49... h3 {[%clk 0:14:27.4]} 50.
Qb3+ {[%clk 0:16:04.7]} 50... Kd4 {[%clk 0:14:31.8]} 51. Ne6+ {[%clk 0:16:05.6]}
51... Ke4 {[%clk 0:14:34.6]} 52. f7 {[%clk 0:16:09.2]} 52... Kf5 {[%clk
0:14:37]} 53. f8=Q+ {[%clk 0:16:07.7]} 53... Ke4 {[%clk 0:14:39.9]} 54. Qc4+
{[%clk 0:16:08.8]} 54... Ke5 {[%clk 0:14:43.5]} 55. Qfc5+ {[%clk 0:16:11.8]}
55... Kf6 {[%clk 0:14:46.5]} 56. Qf4+ {[%clk 0:16:16.3]} 56... Kxe6 {[%clk
0:14:50]} 57. Qce5+ {[%clk 0:16:19.7]} 57... Kd7 {[%clk 0:14:53.4]} 58. Qfd4+
{[%clk 0:16:24.4]} 58... Kc6 {[%clk 0:14:56.8]} 59. Qec5+ {[%clk 0:16:29.3]}
59... Kb7 {[%clk 0:15:00.5]} 60. Qdb4+ {[%clk 0:16:34.2]} 60... Ka6 {[%clk
0:15:04.5]} 61. Qca5# {[%clk 0:16:39.1]} 1-0